fUST/lending_fUST_20240709
["ID","MTS","AMOUNT","RATE_DAILY","PERIOD"]
[331562073,1720506640738,-366.61198732,0.00038163,2]
[331562074,1720506640748,-150.0,0.00038299,2]
[331562075,1720506640757,-1007.544524,0.000385,27]
[331562076,1720506640767,-151.0,0.00038549,14]
[331562077,1720506640777,-151.0,0.00038549,14]
[331562078,1720506640786,-151.0,0.00038549,14]
[331562080,1720506640796,-151.0,0.00038555,14]
[331562081,1720506640807,-171.427721,0.00038555,14]
[331562083,1720506640817,-171.427721,0.00038555,14]
[331562084,1720506640827,-151.0,0.00038555,14]
[331562085,1720506640837,-151.0,0.00038555,14]
[331562087,1720506640847,-160.556798,0.00038555,14]
[331562088,1720506640857,-151.0,0.00038558,14]
[331562089,1720506640867,-271453.61659089,0.00038558,14]
[331562182,1720507832751,-507.84,0.00021096,2]
[331562338,1720507838431,-242.16,0.00021096,2]
[331562340,1720507838441,-162.603903,0.00023735,2]
[331562342,1720507838451,-165.441443,0.0002391,2]
[331562343,1720507838460,-1065.65690458,0.00023966,2]
[331562345,1720507838469,-166.666666,0.00024019,2]
[331562347,1720507838479,-893.4224119,0.000242,2]
[331562349,1720507838488,-166.666666,0.00024674,2]
[331562350,1720507838498,-2975.6960057,0.00024688,2]
[331562351,1720507838507,-166.666666,0.00025329,2]
[331562353,1720507838517,-300.0,0.000255,2]
[331562355,1720507838526,-500.0,0.000255,2]
[331562357,1720507838536,-252.04573773,0.000255,2]
[331562359,1720507838545,-52136.2205257,0.00025501,2]
[331562360,1720507838554,-166.666666,0.00025984,2]
[331562361,1720507838564,-7458.94652043,0.0002649,2]
[331562362,1720507838574,-2058.61750007,0.000266,2]
[331562363,1720507838583,-166.666666,0.00026639,2]
[331562364,1720507838592,-1000.0,0.00027,4]
[331562365,1720507838601,-7513.74,0.00027174,3]
[331562366,1720507838612,-6261.45,0.00027174,3]
[331562367,1720507838622,-30000.0,0.00027184,2]
[331562368,1720507838631,-161.88750048,0.00027184,2]
[331562369,1720507838640,-202.00872387,0.00027184,2]
[331562370,1720507838650,-197.30576581,0.00027194,2]
[331562371,1720507838660,-750.0,0.00027195,2]
[331562372,1720507838669,-166.666666,0.00027294,2]
[331562373,1720507838678,-1518.77517766,0.00027387,3]
[331562378,1720507840811,-18615.08571244,0.00027387,3]
[331562379,1720507840820,-150.0,0.00027394,2]
[331562380,1720507840830,-500.0,0.00027397,2]
[331562381,1720507840839,-500.0,0.00027397,2]
[331562382,1720507840849,-500.0,0.00027397,2]
[331562383,1720507840859,-500.0,0.00027397,2]
[331562384,1720507840871,-500.0,0.00027397,2]
[331562385,1720507840880,-500.0,0.00027397,2]
[331562386,1720507840890,-500.0,0.00027397,2]
[331562387,1720507840899,-500.0,0.00027397,2]
[331562388,1720507840907,-500.0,0.00027397,2]
[331562389,1720507840917,-500.0,0.00027397,2]
[331562390,1720507840926,-500.0,0.00027397,2]
[331562391,1720507840935,-500.0,0.00027397,2]
[331562392,1720507840945,-500.0,0.00027397,2]
[331562393,1720507840955,-500.0,0.00027397,2]
[331562394,1720507840964,-500.0,0.00027397,2]
[331562395,1720507840974,-500.0,0.00027397,2]
[331562396,1720507840983,-500.0,0.00027397,2]
[331562397,1720507840993,-280.93187421,0.00027397,2]
[331562398,1720507841002,-500.0,0.00027397,2]
[331562399,1720507841011,-500.0,0.00027397,2]
[331562400,1720507841021,-500.0,0.00027397,2]
[331562401,1720507841030,-500.0,0.00027397,2]
[331562402,1720507841040,-500.0,0.00027397,2]
[331562403,1720507841050,-500.0,0.00027397,2]
[331562404,1720507841060,-500.0,0.00027397,2]
[331562405,1720507841069,-500.0,0.00027397,2]
[331562406,1720507841079,-500.0,0.00027397,2]
[331562407,1720507841088,-500.0,0.00027397,2]
[331562408,1720507841098,-500.0,0.00027397,2]
[331562409,1720507841108,-500.0,0.00027397,2]
[331562410,1720507841121,-500.0,0.00027397,2]
[331562411,1720507841130,-500.0,0.00027397,2]
[331562412,1720507841141,-500.0,0.00027397,2]
[331562413,1720507841150,-500.0,0.00027397,2]
[331562414,1720507841159,-500.0,0.00027397,2]
[331562415,1720507841168,-500.0,0.00027397,2]
[331562416,1720507841177,-500.0,0.00027397,2]
[331562417,1720507841186,-500.0,0.00027397,2]
[331562418,1720507841195,-500.0,0.00027397,2]
[331562419,1720507841204,-500.0,0.00027397,2]
[331562420,1720507841213,-500.0,0.00027397,2]
[331562421,1720507841222,-713.52682427,0.00027397,2]
[331562422,1720507841231,-713.52682427,0.00027397,2]
[331562423,1720507841240,-713.52682427,0.00027397,2]
[331562424,1720507841249,-713.52682427,0.00027397,2]
[331562425,1720507841259,-713.52682427,0.00027397,2]
[331562426,1720507841268,-713.52682427,0.00027397,2]
[331562427,1720507841277,-713.52682427,0.00027397,2]
[331562428,1720507841287,-713.52682427,0.00027397,2]
[331562429,1720507841297,-713.52682427,0.00027397,2]
[331562430,1720507841306,-713.52682427,0.00027397,2]
[331562431,1720507841315,-713.52682427,0.00027397,2]
[331562432,1720507841324,-713.52682427,0.00027397,2]
[331562433,1720507841334,-713.52682427,0.00027397,2]
[331562434,1720507841345,-713.52682427,0.00027397,2]
[331562435,1720507841356,-713.52682427,0.00027397,2]
[331562436,1720507841370,-713.52682427,0.00027397,2]
[331562437,1720507841379,-713.52682427,0.00027397,2]
[331562438,1720507841390,-713.52682427,0.00027397,2]
[331562439,1720507841399,-713.52682427,0.00027397,2]
[331562440,1720507841411,-713.52682427,0.00027397,2]
[331562441,1720507841420,-713.52682427,0.00027397,2]
[331562442,1720507841429,-713.52682427,0.00027397,2]
[331562443,1720507841438,-713.52682427,0.00027397,2]
[331562444,1720507841448,-713.52682427,0.00027397,2]
[331562445,1720507841457,-713.52682427,0.00027397,2]
[331562446,1720507841467,-713.52682427,0.00027397,2]
[331562447,1720507841476,-713.52682427,0.00027397,2]
[331562448,1720507841484,-713.52682427,0.00027397,2]
[331562449,1720507841495,-713.52682427,0.00027397,2]
[331562450,1720507841505,-713.52682427,0.00027397,2]
[331562451,1720507841574,-713.52682427,0.00027397,2]
[331562452,1720507841584,-713.52682427,0.00027397,2]
[331562453,1720507841594,-713.52682427,0.00027397,2]
[331562454,1720507841605,-713.52682427,0.00027397,2]
[331562455,1720507841618,-713.52682427,0.00027397,2]
[331562456,1720507841628,-713.52682427,0.00027397,2]
[331562457,1720507841637,-737.49922328,0.00027397,2]
[331562458,1720507841648,-737.49922328,0.00027397,2]
[331562459,1720507841657,-737.49922328,0.00027397,2]
[331562460,1720507841666,-737.49922328,0.00027397,2]
[331562461,1720507841675,-737.49922328,0.00027397,2]
[331562462,1720507841684,-737.49922328,0.00027397,2]
[331562463,1720507841693,-737.49922328,0.00027397,2]
[331562464,1720507841703,-737.49922328,0.00027397,2]
[331562465,1720507841712,-737.49922328,0.00027397,2]
[331562466,1720507841721,-737.49922328,0.00027397,2]
[331562467,1720507841730,-737.49922328,0.00027397,2]
[331562468,1720507841739,-737.49922328,0.00027397,2]
[331562469,1720507841748,-737.49922328,0.00027397,2]
[331562470,1720507841758,-737.49922328,0.00027397,2]
[331562471,1720507841767,-191.0559141,0.00027397,120]
[331562472,1720507841776,-197.30576581,0.00027399,2]
[331562473,1720507841785,-1058.91335868,0.00027451,2]
[331562474,1720507841794,-20133.8608901,0.0002749,3]
[331562475,1720507841804,-590.49532904,0.00027499,2]
[331562476,1720507841813,-361.6373675,0.00027499,2]
[331562477,1720507841823,-500.0,0.00027499,2]
[331562478,1720507841833,-500.0,0.00027499,2]
[331562479,1720507841843,-500.0,0.00027499,2]
[331562480,1720507841855,-500.0,0.00027499,2]
[331562481,1720507841865,-444.75315374,0.00027499,2]
[331562482,1720507841875,-17977.66203987,0.000275,2]
[331562483,1720507841884,-250.0,0.00027942,2]
[331562484,1720507841894,-172.42394717,0.00028,30]
[331562485,1720507841903,-268.60335139,0.00028,2]
[331562486,1720507841913,-350.0,0.0002849,2]
[331562487,1720507841923,-450.0,0.00029038,2]
[331562488,1720507841934,-1058.91335864,0.00029245,2]
[331562489,1720507841944,-550.0,0.00029586,2]
[331562490,1720507841953,-2000.0,0.00029682,2]
[331562491,1720507841962,-20133.8608901,0.00029772,3]
[331562492,1720507841971,-293.45867215,0.00029793,2]
[331562493,1720507841980,-248.18592096,0.000298,120]
[331562494,1720507841989,-11114.08530711,0.00029879,2]
[331562495,1720507841998,-11114.08530711,0.00029879,2]
[331562496,1720507842008,-20133.8608901,0.00029883,3]
[331562497,1720507842017,-170.45207762,0.0003,4]
[331562498,1720507842026,-650.0,0.00030134,2]
[331562499,1720507842035,-706.71308225,0.00030682,2]
[331562500,1720507842045,-1058.91335864,0.0003104,2]
[331562501,1720507842054,-1000.0,0.00032,32]
[331562502,1720507842063,-1058.91335864,0.00032834,2]
[331562503,1720507842072,-750.0,0.00033295,2]
[331562504,1720507842081,-20133.8608901,0.00033314,4]
[331562505,1720507842090,-40267.7217803,0.00033323,4]
[331562506,1720507842100,-88745.31066533,0.00033333,2]
[331562507,1720507842109,-1000.0,0.00034,34]
[331562508,1720507842120,-5798.39798668,0.00034543,5]
[331562509,1720507842129,-60401.5826704,0.00034543,4]
[331562510,1720507842141,-40267.7217803,0.00034553,4]
[331562511,1720507842150,-161867.51052963,0.00034563,2]
[331562539,1720507846784,-878.92675256,0.00023453,2]
[331562540,1720507846796,-186.73015202,0.00023453,2]
[331562541,1720507846806,-345.87820536,0.00025297,2]
[331562542,1720507846817,-150.0,0.00027397,7]
[331562543,1720507846826,-279.20375585,0.00030297,2]
[331562747,1720509040674,-738.848645,0.00021096,2]
[331562748,1720509040685,-293.45867215,0.00022579,2]
[331562749,1720509040695,-293.45867215,0.00022579,2]
[331562750,1720509040705,-5000.0,0.00023,4]
[331562751,1720509040714,-5000.0,0.00023,4]
[331562752,1720509040724,-5000.0,0.00023,4]
[331562753,1720509040734,-5000.0,0.00023,4]
[331562754,1720509040744,-4274.2158359,0.00023,4]
[331562755,1720509040757,-166.666666,0.00023509,2]
[331562756,1720509040766,-166.666666,0.0002415,2]
[331562757,1720509040776,-166.666666,0.00024791,2]
[331562758,1720509040786,-166.666666,0.00025432,2]
[331562759,1720509040796,-562.1241737,0.000255,2]
[331562760,1720509040805,-52136.2205257,0.00025501,2]
[331562761,1720509040816,-11114.08530711,0.00025869,2]
[331562762,1720509040825,-166.666666,0.00026073,2]
[331562763,1720509040837,-166.666666,0.00026713,2]
[331562764,1720509040846,-162.707693,0.00026742,2]
[331562765,1720509040856,-4348.23,0.00027165,3]
[331562766,1720509040865,-5217.88,0.00027174,3]
[331562767,1720509040874,-19186.9282047,0.00027174,3]
[331562768,1720509040883,-30000.0,0.00027184,2]
[331562769,1720509040892,-738.848645,0.00027195,2]
[331562770,1720509040902,-2000.0,0.00027297,2]
[331562771,1720509040911,-211.78267176,0.00027297,2]
[331562772,1720509040922,-500.0,0.00027397,2]
[331562773,1720509040931,-500.0,0.00027397,2]
[331562774,1720509040941,-500.0,0.00027397,2]
[331562775,1720509040951,-500.0,0.00027397,2]
[331562776,1720509040961,-500.0,0.00027397,2]
[331562777,1720509040971,-500.0,0.00027397,2]
[331562778,1720509040980,-500.0,0.00027397,2]
[331562779,1720509040990,-500.0,0.00027397,2]
[331562780,1720509041000,-500.0,0.00027397,2]
[331562781,1720509041010,-500.0,0.00027397,2]
[331562782,1720509041020,-244.01958308,0.00027397,2]
[331562783,1720509041030,-500.0,0.00027397,2]
[331562784,1720509041040,-500.0,0.00027397,2]
[331562785,1720509041051,-500.0,0.00027397,2]
[331562786,1720509041061,-500.0,0.00027397,2]
[331562787,1720509041072,-500.0,0.00027397,2]
[331562788,1720509041082,-500.0,0.00027397,2]
[331562789,1720509041092,-500.0,0.00027397,2]
[331562790,1720509041103,-500.0,0.00027397,2]
[331562791,1720509041114,-500.0,0.00027397,2]
[331562792,1720509041126,-500.0,0.00027397,2]
[331562793,1720509041137,-500.0,0.00027397,2]
[331562794,1720509041147,-500.0,0.00027397,2]
[331562795,1720509041159,-500.0,0.00027397,2]
[331562796,1720509041170,-500.0,0.00027397,2]
[331562797,1720509041180,-500.0,0.00027397,2]
[331562798,1720509041190,-500.0,0.00027397,2]
[331562799,1720509041200,-274.40195831,0.00027397,2]
[331562800,1720509041210,-500.0,0.00027397,2]
[331562801,1720509041220,-500.0,0.00027397,2]
[331562802,1720509041230,-500.0,0.00027397,2]
[331562803,1720509041240,-500.0,0.00027397,2]
[331562804,1720509041255,-500.0,0.00027397,2]
[331562805,1720509041264,-500.0,0.00027397,2]
[331562806,1720509041274,-500.0,0.00027397,2]
[331562807,1720509041284,-500.0,0.00027397,2]
[331562808,1720509041293,-360.44533489,0.00027397,2]
[331562809,1720509041303,-829.27396235,0.00028197,2]
[331562810,1720509041313,-1000.0,0.00029,29]
[331562811,1720509041323,-19186.9282047,0.00029783,3]
[331562812,1720509041331,-7605.66738955,0.00029903,2]
[331562813,1720509041340,-170.45207762,0.0003,4]
[331562814,1720509041350,-283.0,0.0003,2]
[331562815,1720509041360,-211.78267172,0.00030078,2]
[331562816,1720509041369,-20198.34074,0.00030197,2]
[331562817,1720509041378,-303.26839892,0.00030297,4]
[331562818,1720509041388,-575.38036629,0.00030297,4]
[331562819,1720509041396,-155.24030498,0.00030297,4]
[331562820,1720509041406,-264.58175342,0.00030297,4]
[331562821,1720509041415,-254.23242842,0.00030297,4]
[331562822,1720509041424,-297.38077892,0.00030297,30]
[331562823,1720509041434,-155.29878261,0.00030297,4]
[331562824,1720509041444,-9222.09683831,0.00030297,7]
[331562825,1720509041453,-169.7492569,0.00030297,4]
[331562826,1720509041474,-1026.21392941,0.00030297,4]
[331562827,1720509041484,-406.51951615,0.00030297,3]
[331562828,1720509041495,-222.39317953,0.00030297,4]
[331562829,1720509041505,-250.0,0.00032,2]
[331562830,1720509041514,-211.78267172,0.0003286,2]
[331562831,1720509041524,-283.0,0.00033,2]
[331562832,1720509041534,-283.0,0.00033,2]
[331562833,1720509041544,-829.27396235,0.00033197,2]
[331562834,1720509041554,-738.848645,0.00033295,2]
[331562835,1720509041565,-156.57599615,0.0003383,7]
[331562836,1720509041575,-521.09362198,0.0003383,7]
[331562837,1720509041586,-500.0,0.0003383,7]
[331562838,1720509041596,-288.26086269,0.0003383,7]
[331562839,1720509041608,-500.0,0.0003383,7]
[331562840,1720509041618,-500.0,0.0003383,7]
[331562841,1720509041628,-500.0,0.0003383,7]
[331562842,1720509041637,-500.0,0.0003383,7]
[331562843,1720509041647,-500.0,0.0003383,7]
[331562844,1720509041656,-19186.9282047,0.00033832,4]
[331562845,1720509041666,-1000.0,0.00034,34]
[331562846,1720509041676,-5292.21400908,0.00034253,2]
[331562847,1720509041685,-150.0,0.00034272,2]
[331562848,1720509041695,-366.61198732,0.00034346,2]
[331562849,1720509041704,-4573.95823309,0.00034458,4]
[331562850,1720509041713,-2372.02455725,0.00034491,60]
[331562851,1720509041723,-351.39,0.0003453,7]
[331562852,1720509041824,-38373.8564095,0.00034553,4]
[331562853,1720509041836,-81123.99021526,0.00034563,2]
[331562905,1720509819163,1235.44285977,0.00016,2]
[331562906,1720509891649,246.502,0.00016,2]
[331562913,1720510141299,190.53671486,0.00014999,2]
[331562961,1720510231846,-3206.26083535,0.00016255,2]
[331562965,1720510231856,-155.4385738,0.00016255,2]
[331562967,1720510231867,-154.74467129,0.00016255,2]
[331562971,1720510231888,-300.0,0.00018898,2]
[331562973,1720510231899,-161.88750048,0.00018899,2]
[331562975,1720510231909,-7359.23741695,0.00018899,2]
[331563052,1720510238006,-1039.43323452,0.00018899,2]
[331563055,1720510238018,-361.47694168,0.00018899,7]
[331563057,1720510238028,-1295.16792727,0.000189,2]
[331563058,1720510238038,-813.14107465,0.00019164,3]
[331563060,1720510238047,-813.14107465,0.00019164,3]
[331563062,1720510238057,-2244.84007704,0.0002,2]
[331563064,1720510238067,-628.021348,0.00021096,2]
[331563065,1720510238076,-162.645419,0.00021132,2]
[331563066,1720510238086,-166.666666,0.00021739,2]
[331563068,1720510238095,-166.666666,0.00022332,2]
[331563069,1720510238105,-303.8914171,0.00022555,2]
[331563070,1720510238115,-166.666666,0.00022924,2]
[331563071,1720510238125,-11114.08530711,0.00023453,2]
[331563072,1720510238135,-166.666666,0.00023517,2]
[331563073,1720510238144,-1295.16792727,0.000239,2]
[331563074,1720510238155,-154.66746495,0.00024,10]
[331563075,1720510238168,-1000.0,0.00024,24]
[331563076,1720510238178,-166.666666,0.0002411,2]
[331563077,1720510238188,-166.666666,0.00024703,2]
[331563078,1720510238198,-52136.2205257,0.00025501,2]
[331563079,1720510238208,-163.5547254,0.0002627,2]
[331563080,1720510238218,-6830.0037882,0.00026483,2]
[331563081,1720510238227,-274.132111,0.00026672,2]
[331563082,1720510238237,-1000.0,0.00027,27]
[331563083,1720510238248,-422.82,0.00027164,3]
[331563084,1720510238257,-17542.674157,0.00027174,3]
[331563085,1720510238267,-30000.0,0.00027184,2]
[331563087,1720510238277,-628.021348,0.00027195,2]
[331563088,1720510238286,-500.0,0.00027397,2]
[331563090,1720510238295,-377.44019583,0.00027397,2]
[331563092,1720510238304,-500.0,0.00027397,2]
[331563093,1720510238319,-505.07079601,0.00028,2]
[331563094,1720510238338,-1000.0,0.00029,29]
[331563095,1720510238358,-2000.0,0.00029783,2]
[331563096,1720510238389,-170.45207762,0.0003,4]
[331563097,1720510238411,-426.0,0.0003,2]
[331563098,1720510238431,-304.22675637,0.0003,30]
[331563099,1720510238452,-7381.33,0.0003295,3]
[331563100,1720510238471,-5292.55,0.0003296,3]
[331563101,1720510238493,-4179.9946,0.00033,7]
[331563102,1720510238515,-426.0,0.00033,2]
[331563103,1720510238531,-211.78267172,0.00033195,2]
[331563104,1720510238545,-5292.55,0.00033284,3]
[331563105,1720510238561,-1580.53894604,0.00033294,4]
[331563106,1720510238578,-628.021348,0.00033295,2]
[331563107,1720510238595,-150.0,0.00033454,2]
[331563108,1720510238615,-150.0,0.00033826,2]
[331563109,1720510238628,-1182.49762447,0.00033842,4]
[331563110,1720510238641,-1000.0,0.00034,34]
[331563111,1720510238658,-150.0,0.00034097,2]
[331563112,1720510238674,-366.61198732,0.00034262,2]
[331563113,1720510238688,-17542.674157,0.00034397,4]
[331563114,1720510238706,-41077.76049339,0.00034407,2]
[331563115,1720510238718,-922.8597104,0.00034418,4]
[331563116,1720510238731,-150.0,0.00034425,2]
[331563117,1720510238750,-1431.78470865,0.00034458,2]
[331563118,1720510238765,-1840.73886579,0.00034472,4]
[331563119,1720510238780,-643.5565645,0.00034491,4]
[331563120,1720510238795,-617.83496212,0.00034519,7]
[331563121,1720510238810,-500.0,0.00034519,7]
[331563122,1720510238824,-500.0,0.00034519,7]
[331563123,1720510238838,-500.0,0.00034519,7]
[331563124,1720510238852,-500.0,0.00034519,7]
[331563125,1720510238866,-500.0,0.00034519,7]
[331563126,1720510238880,-500.0,0.00034519,7]
[331563127,1720510238893,-349.53395549,0.00034519,7]
[331563128,1720510238907,-5292.21400908,0.0003452,2]
[331563129,1720510238920,-17542.674157,0.00034553,4]
[331563130,1720510238933,-435.0,0.00034555,2]
[331563131,1720510238946,-154.62117811,0.00034562,4]
[331563132,1720510238962,-10640.94937349,0.00034563,2]
[331563133,1720510238977,-726.33060574,0.00034563,4]
[331563134,1720510238991,-9222.09683831,0.00034563,7]
[331563135,1720510239005,-406.51951615,0.00034563,3]
[331563136,1720510239020,-303.26839892,0.00034563,4]
[331563137,1720510239035,-1026.21392941,0.00034563,4]
[331563138,1720510239049,-575.38036629,0.00034563,4]
[331563139,1720510239065,-254.23242842,0.00034563,4]
[331563140,1720510239077,-154.62117811,0.00034574,4]
[331563141,1720510239089,-318.0694556,0.0003458,4]
[331563142,1720510239219,-659.47638285,0.0003458,2]
[331563143,1720510239229,-568.93297583,0.00034585,4]
[331563144,1720510239239,-155.1936798,0.00034588,4]
[331563145,1720510239252,-155.69609692,0.00034592,4]
[331563146,1720510239264,-256.79365305,0.00034602,2]
[331563147,1720510239274,-235.62575763,0.00034602,4]
[331563148,1720510239284,-224.52122455,0.00034623,4]
[331563149,1720510239294,-155.77089587,0.00034623,2]
[331563150,1720510239304,-158.57719136,0.00034634,4]
[331563151,1720510239315,-154.74467129,0.00034634,4]
[331563152,1720510239325,-394.28228504,0.00034642,4]
[331563153,1720510239336,-157.26558842,0.00034702,4]
[331563154,1720510239346,-1282.49405735,0.00034728,12]
[331563155,1720510239356,-192.802,0.00034862,30]
[331563156,1720510239368,-52628.0224709,0.0003489,4]
[331563157,1720510239379,-2636.71207576,0.000349,5]
[331563158,1720510239391,-15067.20624802,0.000349,2]
[331563159,1720510239417,-842.05662477,0.000349,2]
[331563160,1720510239882,-1077.6515526,0.000349,2]
[331563184,1720510243089,-2606.533605,0.000349,2]
[331563197,1720510339572,1500.0,0.00014999,2]
[331563199,1720510460374,224.52122455,0.00014999,2]
[331563201,1720510485599,157.26558842,0.00014999,2]
[331563202,1720510521942,155.69609692,0.00014999,2]
[331563203,1720510526855,568.93297583,0.00014999,2]
[331563204,1720510533699,318.0694556,0.00014999,2]
[331563205,1720510542630,491.31326196,0.00015998,2]
[331563207,1720510571038,2540.34855157,0.00014999,2]
[331563210,1720510591645,726.33060574,0.00014999,2]
[331563215,1720510700716,168.16312089,0.00015998,2]
[331563219,1720510798955,1635.9635479,0.00014999,2]
[331563221,1720510804295,-154.74467129,0.00016255,2]
[331563222,1720510804321,-922.8597104,0.00016255,2]
[331563227,1720511031965,204.77531789,0.00014999,2]
[331563229,1720511032606,175.06419494,0.00014999,2]
[331563230,1720511058753,155.91256792,0.00014999,2]
[331563233,1720511076031,232.98135407,0.00014999,2]
[331563234,1720511086929,182.65644103,0.00014999,2]
[331563239,1720511284288,207.84,0.00014999,2]
[331563252,1720511432074,-265.87082816,0.00016255,2]
[331563253,1720511432084,-431.72264242,0.000189,2]
[331563254,1720511432093,-158.57719136,0.0002,2]
[331563255,1720511432103,-166.666669,0.00021096,2]
[331563256,1720511432111,-228.64059814,0.00021096,2]
[331563257,1720511432937,-302.0,0.00021096,2]
[331563372,1720511438109,-65.97968186,0.00021096,2]
[331563374,1720511438124,-166.666666,0.00021726,2]
[331563375,1720511438134,-150.10186468,0.00021967,2]
[331563376,1720511438144,-155.77089587,0.00022,2]
[331563377,1720511438153,-166.666666,0.00022318,2]
[331563378,1720511438163,-405.0203601,0.00022747,2]
[331563379,1720511438173,-166.666666,0.00022911,2]
[331563380,1720511438183,-166.666666,0.00023503,2]
[331563381,1720511438192,-219.37053349,0.000239,2]
[331563382,1720511438210,-212.35210893,0.000239,2]
[331563383,1720511438220,-166.666666,0.00024095,2]
[331563384,1720511438230,-166.666666,0.00024688,2]
[331563386,1720511438240,-300.0,0.000255,2]
[331563388,1720511438250,-52136.2205257,0.00025501,2]
[331563389,1720511438259,-7458.94652043,0.0002649,2]
[331563390,1720511438269,-2058.61750007,0.000266,2]
[331563391,1720511438279,-1000.0,0.00027,27]
[331563392,1720511438288,-166.522732,0.00027123,2]
[331563393,1720511438297,-422.82,0.00027174,3]
[331563394,1720511438307,-30000.0,0.00027184,2]
[331563395,1720511438318,-596.62028,0.00027195,2]
[331563396,1720511438328,-500.0,0.00027397,2]
[331563397,1720511438339,-500.0,0.00027397,2]
[331563398,1720511438348,-377.44019583,0.00027397,2]
[331563399,1720511438361,-6586.85,0.0002746,3]
[331563400,1720511438372,-7904.22,0.0002747,3]
[331563401,1720511438382,-9485.06,0.0002748,3]
[331563402,1720511438392,-19080.9437792,0.0002749,3]
[331563403,1720511438401,-3852.8033893,0.000275,2]
[331563404,1720511438410,-1743.19470966,0.0002877,2]
[331563405,1720511438420,-431.72264242,0.000289,2]
[331563406,1720511438432,-1000.0,0.00029,29]
[331563407,1720511438442,-2000.0,0.00029769,2]
[331563408,1720511438452,-11114.08530711,0.00029803,2]
[331563409,1720511438462,-11114.08530711,0.00029803,2]
[331563410,1720511438472,-349.44140838,0.000299,2]
[331563411,1720511438482,-170.45207762,0.0003,4]
[331563412,1720511438492,-304.22675637,0.0003,30]
[331563413,1720511438501,-643.5565645,0.0003,4]
[331563414,1720511438511,-426.0,0.0003,2]
[331563415,1720511438522,-19080.9437792,0.0003179,4]
[331563416,1720511438535,-10640.94937349,0.000318,2]
[331563417,1720511438544,-500.30375304,0.00032,30]
[331563418,1720511438554,-349.44140835,0.00032026,2]
[331563419,1720511438564,-150.0,0.00032877,2]
[331563420,1720511438574,-250.0,0.00033,7]
[331563421,1720511438584,-426.0,0.00033,2]
[331563422,1720511438593,-596.62028,0.00033295,2]
[331563423,1720511438605,-1000.0,0.00034,34]
[331563424,1720511438615,-349.44140835,0.00034151,2]
[331563425,1720511438627,-394.28228504,0.00034388,4]
[331563426,1720511438636,-5292.21400908,0.00034584,2]
[331563427,1720511438646,-265.09411912,0.00034585,2]
[331563428,1720511438655,-360.8874203,0.00034585,4]
[331563429,1720511438665,-202.00872387,0.00034588,4]
[331563430,1720511438675,-202.00872387,0.00034588,4]
[331563431,1720511438684,-150.0,0.00034611,2]
[331563432,1720511438694,-366.61198732,0.00034614,2]
[331563433,1720511438703,-1431.78470865,0.0003467,2]
[331563434,1720511438713,-1282.49405735,0.00034728,12]
[331563435,1720511438723,-152.84479648,0.000348,2]
[331563436,1720511438732,-177.17588808,0.00034811,4]
[331563437,1720511438743,-192.802,0.00034877,30]
[331563438,1720511438752,-500.0,0.00034879,7]
[331563439,1720511438762,-617.83496212,0.00034879,7]
[331563440,1720511438771,-500.0,0.00034879,7]
[331563441,1720511438781,-500.0,0.00034879,7]
[331563442,1720511438791,-500.0,0.00034879,7]
[331563443,1720511438801,-500.0,0.00034879,7]
[331563444,1720511438810,-500.0,0.00034879,7]
[331563445,1720511438820,-349.53395549,0.00034879,7]
[331563446,1720511438830,-38161.8875584,0.0003488,4]
[331563447,1720511438841,-22136.64490536,0.0003489,5]
[331563456,1720511440079,-35210.2046541,0.0003489,5]
[331563457,1720511440186,-8123.69487583,0.0003489,5]
[331563474,1720511443240,-806.10539415,0.0003489,5]
[331563484,1720511446290,-202.00872387,0.00034585,4]
[331563485,1720511446300,-6133.90676933,0.0003489,5]